fUSD/lending_fUSD_20241119
["ID","MTS","AMOUNT","RATE_DAILY","PERIOD"]
[342657542,1732027855146,-500.0,0.00014108,2]
[342657544,1732027855155,-4869.76,0.00014109,2]
[342657546,1732027855165,-4982.58,0.00014111,2]
[342657548,1732027855174,-5000.0,0.00014123,2]
[342657550,1732027855183,-5000.0,0.00014123,2]
[342657552,1732027855192,-3497.87,0.00014125,2]
[342657554,1732027855202,-150.0,0.00014131,2]
[342657556,1732027855211,-25000.0,0.00014152,2]
[342657558,1732027855220,-5000.0,0.00014157,2]
[342657560,1732027855229,-603.95,0.00014161,2]
[342657562,1732027855239,-150.0,0.00014166,2]
[342657564,1732027855248,-619.76,0.00014173,2]
[342657566,1732027855261,-5000.0,0.00014192,2]
[342657568,1732027855270,-1161.29,0.00014208,7]
[342657570,1732027855279,-1161.29,0.00014208,7]
[342657572,1732027855289,-2154.99901743,0.0001421,7]
[342657574,1732027855298,-5000.0,0.0001421,2]
[342657576,1732027855307,-5000.0,0.00014234,2]
[342657578,1732027855316,-400.0,0.00014246,2]
[342657580,1732027855326,-400.0,0.00014246,2]
[342657582,1732027855338,-400.0,0.00014246,2]
[342657584,1732027855348,-400.0,0.00014246,2]
[342657586,1732027855357,-400.0,0.00014246,2]
[342657588,1732027855366,-4869.76,0.00014246,2]
[342657590,1732027855376,-61418.35,0.00014247,2]
[342657592,1732027855385,-1000.0,0.00014247,2]
[342657594,1732027855394,-378.85545945,0.00014247,2]
[342657596,1732027855405,-727.36644876,0.00014247,2]
[342657598,1732027855414,-1000.0,0.00014247,2]
[342657600,1732027855423,-1000.0,0.00014247,2]
[342657602,1732027855433,-150.0,0.00014249,2]
[342657604,1732027855442,-4847.09,0.00014271,2]
[342657606,1732027855451,-5000.0,0.00014279,2]
[342657608,1732027855461,-25000.0,0.00014299,2]
[342657610,1732027855470,-5000.0,0.00014332,2]
[342657612,1732027855479,-5000.0,0.00014335,2]
[342657614,1732027855488,-500.0,0.00014355,2]
[342657616,1732027855497,-447.48640307,0.00014362,2]
[342657618,1732027855509,-160.20028232,0.00014362,2]
[342657620,1732027855519,-195.78455287,0.00014362,2]
[342657622,1732027855528,-2378.37,0.00014379,2]
[342657624,1732027855538,-500.0,0.00014382,2]
[342657626,1732027855547,-4869.76,0.00014383,2]
[342657628,1732027855556,-9800.40342113,0.0001439,2]
[342657630,1732027855565,-200.0,0.0001439,2]
[342657632,1732027855574,-5000.0,0.00014391,2]
[342657634,1732027855583,-5000.0,0.00014393,2]
[342657636,1732027855592,-5000.0,0.00014398,2]
[342657638,1732027855601,-645.91,0.00014401,2]
[342657640,1732027855610,-4013.78,0.00014409,2]
[342657642,1732027855619,-150.0,0.0001442,2]
[342657644,1732027855629,-5000.0,0.0001442,2]
[342657646,1732027855638,-5000.0,0.00014426,2]
[342657648,1732027855647,-25000.0,0.00014428,2]
[342657650,1732027855656,-5000.0,0.00014433,2]
[342657652,1732027855665,-1161.29,0.00014481,7]
[342657654,1732027855674,-1161.29,0.00014481,7]
[342657656,1732027855683,-5000.0,0.00014483,2]
[342657657,1732027855692,-5000.0,0.00014487,2]
[342657659,1732027855701,-5000.0,0.00014492,2]
[342657661,1732027855711,-475.2520384,0.00014499,2]
[342657663,1732027855720,-400.0,0.00014499,2]
[342657665,1732027855730,-400.0,0.00014499,2]
[342657667,1732027855739,-400.0,0.00014499,2]
[342657669,1732027855748,-400.0,0.00014499,2]
[342657671,1732027855761,-123539.59006911,0.000145,3]
[342657673,1732027855770,-224905.48486778,0.000145,3]
[342657675,1732027855779,-623.0,0.000145,2]
[342657677,1732027855788,-1725.14,0.00014504,2]
[342657679,1732027855798,-5000.0,0.0001452,2]
[342657681,1732027855807,-1575.65,0.0001452,2]
[342657683,1732027855816,-4869.76,0.0001452,2]
[342657685,1732027855825,-500.0,0.00014533,2]
[342657687,1732027855834,-25000.0,0.00014537,2]
[342657689,1732027855844,-5000.0,0.00014542,2]
[342657691,1732027855853,-603.95,0.00014586,2]
[342657693,1732027855862,-5000.0,0.00014592,2]
[342657695,1732027855871,-24948.54,0.00014614,2]
[342657697,1732027855880,-5000.0,0.00014621,2]
[342657699,1732027855889,-447.48640307,0.00014656,2]
[342657701,1732027855898,-160.20028232,0.00014656,2]
[342657703,1732027855907,-195.78455287,0.00014656,2]
[342657705,1732027855918,-500.0,0.00014656,2]
[342657707,1732027855928,-5000.0,0.00014657,2]
[342657709,1732027855937,-4869.76,0.00014657,2]
[342657711,1732027855947,-5000.0,0.00014669,2]
[342657713,1732027855957,-500.0,0.00014676,2]
[342657715,1732027855967,-200.0,0.00014677,2]
[342657717,1732027855977,-1263.26,0.000147,2]
[342657719,1732027855986,-151.0,0.000147,2]
[342657721,1732027855996,-4788.32,0.00014703,2]
[342657723,1732027856007,-150.0,0.00014708,2]
[342657725,1732027856016,-5000.0,0.00014729,2]
[342657727,1732027856026,-1161.29,0.00014754,7]
[342657728,1732027856035,-1161.29,0.00014754,7]
[342657729,1732027856044,-500.0,0.00014756,2]
[342657730,1732027856053,-500.0,0.00014756,2]
[342657731,1732027856063,-1058.71,0.0001476,2]
[342657732,1732027856072,-5000.0,0.00014763,2]
[342657733,1732027856081,-500.0,0.00014766,2]
[342657734,1732027856090,-5000.0,0.00014789,2]
[342657735,1732027856099,-4869.76,0.00014794,2]
[342657736,1732027856109,-5000.0,0.00014807,2]
[342657738,1732027856118,-983.3,0.00014833,2]
[342657740,1732027856127,-4710.26,0.00014848,2]
[342657742,1732027856137,-5000.0,0.0001485,2]
[342657744,1732027856147,-500.0,0.00014856,2]
[342657746,1732027856156,-500.0,0.00014864,2]
[342657748,1732027856165,-5000.0,0.00014873,2]
[342657750,1732027856175,-500.0,0.00014873,2]
[342657752,1732027856184,-5000.0,0.00014876,2]
[342657754,1732027856194,-500.0,0.00014877,2]
[342657756,1732027856203,-500.0,0.00014882,2]
[342657758,1732027856213,-500.0,0.00014891,2]
[342657760,1732027856223,-500.0,0.000149,2]
[342657762,1732027856233,-213.89839144,0.000149,2]
[342657765,1732027856243,-213.89839142,0.000149,2]
[342657767,1732027856256,-213.89839142,0.000149,2]
[342657769,1732027856266,-5000.0,0.00014902,2]
[342657771,1732027856275,-586.06,0.00014907,2]
[342657773,1732027856285,-5000.0,0.00014908,2]
[342657775,1732027856295,-151.32551609,0.0001491,4]
[342657777,1732027856304,-5000.0,0.0001492,2]
[342657779,1732027856314,-150.0,0.0001492,2]
[342657781,1732027856324,-5000.0,0.00014921,2]
[342657783,1732027856339,-440.49077685,0.0001493,2]
[342657785,1732027856349,-4869.76,0.00014931,2]
[342657787,1732027856359,-500.0,0.00014934,2]
[342657789,1732027856369,-447.48640307,0.0001495,2]
[342657791,1732027856378,-160.20028232,0.0001495,2]
[342657793,1732027856387,-195.78455287,0.0001495,2]
[342657795,1732027856397,-591.87,0.00014964,2]
[342657797,1732027856407,-5000.0,0.00014974,2]
[342657799,1732027856417,-5000.0,0.00014977,2]
[342657801,1732027856427,-25000.0,0.00014994,2]
[342657803,1732027856437,-150.0,0.00014995,2]
[342657805,1732027856447,-150.0,0.00014996,2]
[342657807,1732027856457,-400.0,0.00014999,2]
[342657809,1732027856467,-400.0,0.00014999,2]
[342657811,1732027856476,-400.0,0.00014999,2]
[342657813,1732027856486,-400.0,0.00014999,2]
[342657815,1732027856496,-1147504.58228796,0.00015,2]
[342657817,1732027856507,-810093.87731405,0.00015,2]
[342657819,1732027856516,-5389.0,0.00015,2]
[342657821,1732027856526,-496.03552832,0.00015,2]
[342657823,1732027856536,-656.6218184,0.00015,2]
[342657825,1732027856546,-1001.766648,0.00015,2]
[342657828,1732027856556,-1946.22180444,0.00015,2]
[342657830,1732027856566,-140951.54132099,0.00015,4]
[342657832,1732027856575,-39642.00224634,0.00015,4]
[342657834,1732027856584,-5217.0,0.00015,2]
[342657835,1732027856593,-3999.999999,0.00015,2]
[342657838,1732027856604,-900.0,0.00015,16]
[342657840,1732027856613,-208.274941,0.00015,2]
[342657842,1732027856622,-2413.02,0.00015,3]
[342657844,1732027856631,-163.450121,0.00015,2]
[342657846,1732027856642,-239.580428,0.00015,2]
[342657848,1732027856655,-239.580428,0.00015,2]
[342657850,1732027856664,-467.597874,0.00015,2]
[342657852,1732027856674,-467.597874,0.00015,2]
[342657854,1732027856684,-151.0,0.00015,2]
[342657856,1732027856693,-151.0,0.00015,2]
[342657858,1732027856704,-242.540746,0.00015,2]
[342657860,1732027856714,-242.540746,0.00015,2]
[342657862,1732027856723,-151.0,0.00015,2]
[342657864,1732027856733,-151.0,0.00015,2]
[342657866,1732027856742,-151.0,0.00015,2]
[342657868,1732027856752,-151.0,0.00015,2]
[342657870,1732027856764,-158.982263,0.00015,2]
[342657872,1732027856774,-151.0,0.00015,2]
[342657874,1732027856783,-158.982263,0.00015,2]
[342657876,1732027856793,-399.598778,0.00015,2]
[342657878,1732027856802,-399.598778,0.00015,2]
[342657880,1732027856812,-462.25,0.00015,2]
[342657882,1732027856822,-417.319908,0.00015,2]
[342657884,1732027856832,-417.319908,0.00015,2]
[342657886,1732027856842,-292.450624,0.00015,2]
[342657888,1732027856851,-292.450624,0.00015,2]
[342657890,1732027856861,-166.543521,0.00015,2]
[342657892,1732027856871,-1207.212369,0.00015,2]
[342657894,1732027856880,-1207.212369,0.00015,2]
[342657896,1732027856889,-877.73567,0.00015,2]
[342657898,1732027856899,-877.73567,0.00015,2]
[342657900,1732027856908,-151.0,0.00015,2]
[342657902,1732027856918,-151.0,0.00015,2]
[342657905,1732027856928,-261.431179,0.00015,2]
[342657907,1732027856937,-261.431179,0.00015,2]
[342657909,1732027856947,-151.0,0.00015,2]
[342657911,1732027856956,-654.359303,0.00015,2]
[342657913,1732027856965,-654.359303,0.00015,2]
[342657915,1732027856975,-379.853201,0.00015,2]
[342657917,1732027856984,-379.853201,0.00015,2]
[342657919,1732027856994,-151.0,0.00015,2]
[342657921,1732027857003,-151.0,0.00015,2]
[342657923,1732027857014,-11070.0,0.00015,2]
[342657925,1732027857023,-159.741565,0.00015,2]
[342657927,1732027857033,-159.741565,0.00015,2]
[342657929,1732027857042,-1098.619911,0.00015,2]
[342657931,1732027857052,-1098.619911,0.00015,2]
[342657933,1732027857061,-228.011085,0.00015,2]
[342657935,1732027857071,-228.011085,0.00015,2]
[342657937,1732027857081,-151.0,0.00015,2]
[342657939,1732027857091,-151.0,0.00015,2]
[342657941,1732027857100,-151.0,0.00015,2]
[342657943,1732027857110,-1701.719222,0.00015,2]
[342657945,1732027857120,-740.730375,0.00015,2]
[342657947,1732027857131,-740.730375,0.00015,2]
[342657949,1732027857141,-158.593645,0.00015,2]
[342657951,1732027857151,-158.593645,0.00015,2]
[342657953,1732027857164,-447.488631,0.00015,2]
[342657955,1732027857173,-205.590034,0.00015,2]
[342657957,1732027857183,-447.488631,0.00015,2]
[342657959,1732027857192,-205.590034,0.00015,2]
[342657961,1732027857202,-419.839689,0.00015,2]
[342657963,1732027857211,-625.07793,0.00015,2]
[342657965,1732027857221,-419.839689,0.00015,2]
[342657967,1732027857231,-151.0,0.00015,2]
[342657969,1732027857241,-625.07793,0.00015,2]
[342657971,1732027857250,-151.0,0.00015,2]
[342657973,1732027857263,-600.0,0.00015,2]
[342657975,1732027857272,-600.0,0.00015,2]
[342657977,1732027857282,-151.0,0.00015,2]
[342657980,1732027857292,-172.229329,0.00015,2]
[342657982,1732027857302,-159.576969,0.00015,2]
[342657984,1732027857311,-298.362701,0.00015,2]
[342657986,1732027857321,-159.576969,0.00015,2]
[342657988,1732027857331,-298.362701,0.00015,2]
[342657990,1732027857342,-151.0,0.00015,2]
[342657992,1732027857351,-167.488161,0.00015,2]
[342657994,1732027857361,-167.488161,0.00015,2]
[342657996,1732027857371,-151.0,0.00015,2]
[342657998,1732027857382,-374.435502,0.00015,2]
[342658000,1732027857393,-374.435502,0.00015,2]
[342658002,1732027857402,-2142.500908,0.00015,2]
[342658004,1732027857412,-2142.500908,0.00015,2]
[342658006,1732027857422,-302.433536,0.00015,2]
[342658008,1732027857432,-302.433536,0.00015,2]
[342658010,1732027857442,-253.172762,0.00015,2]
[342658012,1732027857451,-253.172762,0.00015,2]
[342658014,1732027857461,-151.0,0.00015,2]
[342658016,1732027857471,-469.63876,0.00015,2]
[342658018,1732027857480,-469.63876,0.00015,2]
[342658020,1732027857490,-623.0,0.00015,2]
[342658022,1732027857500,-151.0,0.00015,2]
[342658024,1732027857511,-1353.867981,0.00015,2]
[342658026,1732027857521,-151.0,0.00015,2]
[342658028,1732027857530,-1353.867981,0.00015,2]
[342658030,1732027857541,-151.0,0.00015,2]
[342658032,1732027857550,-151.0,0.00015,2]
[342658034,1732027857560,-1308.35475,0.00015,2]
[342658036,1732027857570,-1308.35475,0.00015,2]
[342658038,1732027857579,-699.733326,0.00015,2]
[342658040,1732027857589,-699.733326,0.00015,2]
[342658042,1732027857599,-4493.276102,0.00015,2]
[342658044,1732027857609,-720.751891,0.00015,2]
[342658046,1732027857619,-4493.276102,0.00015,2]
[342658048,1732027857628,-720.751891,0.00015,2]
[342658050,1732027857638,-480.058897,0.00015,2]
[342658051,1732027857648,-480.058897,0.00015,2]
[342658052,1732027857658,-474.793912,0.00015,2]
[342658053,1732027857668,-474.793912,0.00015,2]
[342658054,1732027857678,-151.0,0.00015,2]
[342658055,1732027857688,-151.0,0.00015,2]
[342658056,1732027857698,-151.0,0.00015,2]
[342658057,1732027857709,-219.846201,0.00015,2]
[342658059,1732027857718,-600.054296,0.00015,2]
[342658061,1732027857728,-219.846201,0.00015,2]
[342658063,1732027857737,-600.054296,0.00015,2]
[342658065,1732027857747,-151.0,0.00015,2]
[342658067,1732027857762,-151.0,0.00015,2]
[342658069,1732027857774,-492.45,0.00015,2]
[342658071,1732027857784,-492.45,0.00015,2]
[342658073,1732027857794,-151.0,0.00015,2]
[342658075,1732027857803,-584.547328,0.00015,2]
[342658077,1732027857814,-584.547328,0.00015,2]
[342658079,1732027857824,-209.479131,0.00015,2]
[342658081,1732027857834,-209.479131,0.00015,2]
[342658083,1732027857845,-649.373281,0.00015,2]
[342658086,1732027857855,-151.0,0.00015,2]
[342658088,1732027857865,-649.373281,0.00015,2]
[342658089,1732027857875,-450.757394,0.00015,2]
[342658092,1732027857885,-450.757394,0.00015,2]
[342658094,1732027857895,-4284.791342,0.00015,2]
[342658096,1732027857905,-4284.791342,0.00015,2]
[342658098,1732027857915,-151.0,0.00015,2]
[342658100,1732027857925,-5218.185366,0.00015,2]
[342658102,1732027857935,-5218.185366,0.00015,2]
[342658104,1732027857946,-837.260889,0.00015,2]
[342658106,1732027857956,-837.260889,0.00015,2]
[342658108,1732027857966,-1216.387468,0.00015,2]
[342658110,1732027857977,-1216.387468,0.00015,2]
[342658112,1732027857986,-155.155781,0.00015,2]
[342658114,1732027857996,-155.155781,0.00015,2]
[342658116,1732027858009,-164.5695,0.00015,2]
[342658118,1732027858019,-164.5695,0.00015,2]
[342658120,1732027858028,-151.0,0.00015,2]
[342658122,1732027858037,-697.462973,0.00015,2]
[342658124,1732027858048,-151.0,0.00015,2]
[342658126,1732027858058,-697.462973,0.00015,2]
[342658128,1732027858068,-308.44,0.00015,2]
[342658130,1732027858078,-308.44,0.00015,2]
[342658155,1732027858308,-2734.916534,0.00015,2]
[342658158,1732027858328,-2734.916534,0.00015,2]
[342658160,1732027858342,-151.0,0.00015,2]
[342658162,1732027858351,-756.26922,0.00015,2]
[342658164,1732027858361,-454.7,0.00015,2]
[342658166,1732027858370,-151.0,0.00015,2]
[342658168,1732027858381,-491.910606,0.00015,2]
[342658170,1732027858390,-454.7,0.00015,2]
[342658172,1732027858400,-756.26922,0.00015,2]
[342658174,1732027858410,-491.910606,0.00015,2]
[342658176,1732027858420,-1009.82,0.00015,2]
[342658178,1732027858430,-762.994621,0.00015,2]
[342658180,1732027858439,-762.994621,0.00015,2]
[342658182,1732027858449,-305.484838,0.00015,2]
[342658184,1732027858458,-276.859952,0.00015,2]
[342658186,1732027858467,-305.484838,0.00015,2]
[342658188,1732027858476,-276.859952,0.00015,2]
[342658190,1732027858486,-795.371889,0.00015,2]
[342658192,1732027858495,-795.371889,0.00015,2]
[342658194,1732027858504,-752.768844,0.00015,2]
[342658196,1732027858516,-752.768844,0.00015,2]
[342658198,1732027858525,-930.621483,0.00015,2]
[342658200,1732027858535,-262.646924,0.00015,2]
[342658202,1732027858545,-930.621483,0.00015,2]
[342658204,1732027858555,-262.646924,0.00015,2]
[342658206,1732027858564,-2573.487954,0.00015,2]
[342658208,1732027858574,-2573.487954,0.00015,2]
[342658210,1732027858583,-896.231189,0.00015,2]
[342658212,1732027858593,-151.0,0.00015,2]
[342658214,1732027858603,-896.231189,0.00015,2]
[342658216,1732027858612,-10000.0,0.00015,2]
[342658218,1732027858622,-10000.0,0.00015,2]
[342658220,1732027858631,-151.0,0.00015,2]
[342658222,1732027858640,-10000.0,0.00015,2]
[342658224,1732027858649,-151.0,0.00015,2]
[342658226,1732027858659,-10000.0,0.00015,2]
[342658228,1732027858668,-513.367611,0.00015,2]
[342658230,1732027858677,-10000.0,0.00015,2]
[342658232,1732027858687,-513.367611,0.00015,2]
[342658234,1732027858697,-10000.0,0.00015,2]
[342658236,1732027858706,-10000.0,0.00015,2]
[342658238,1732027858716,-163.655185,0.00015,2]
[342658240,1732027858726,-163.655185,0.00015,2]
[342658242,1732027858736,-500.0,0.00015,2]
[342658244,1732027858745,-500.0,0.00015,2]
[342658246,1732027858755,-312.196955,0.00015,2]
[342658248,1732027858766,-505.76,0.00015,2]
[342658250,1732027858776,-505.76,0.00015,2]
[342658252,1732027858787,-505.76,0.00015,2]
[342658254,1732027858797,-505.76,0.00015,2]
[342658256,1732027858808,-505.76,0.00015,2]
[342658257,1732027858818,-505.76,0.00015,2]
[342658260,1732027858828,-505.76,0.00015,2]
[342658262,1732027858838,-505.76,0.00015,2]
[342658264,1732027858847,-505.76,0.00015,2]
[342658266,1732027858860,-505.76,0.00015,2]
[342658268,1732027858870,-312.196955,0.00015,2]
[342658269,1732027858883,-275.007778,0.00015,2]
[342658271,1732027858894,-547.483222,0.00015,2]
[342658273,1732027858903,-547.483222,0.00015,2]
[342658275,1732027858913,-151.0,0.00015,2]
[342658277,1732027858923,-151.0,0.00015,2]
[342658279,1732027858933,-1161.29,0.00015027,7]
[342658281,1732027858942,-1161.29,0.00015027,7]
[342658283,1732027858954,-4869.76,0.00015068,2]
[342658285,1732027858963,-571.912875,0.00015068,2]
[342658287,1732027858973,-571.912875,0.00015068,2]
[342658289,1732027858984,-300.0,0.00015068,2]
[342658291,1732027858993,-295.55130903,0.000151,2]
[342658294,1732027859003,-4869.76,0.00015205,2]
[342658296,1732027859015,-1219.09261021,0.00015235,2]
[342658298,1732027859025,-447.48640307,0.00015243,2]
[342658300,1732027859034,-160.20028232,0.00015243,2]
[342658302,1732027859044,-195.78455287,0.00015243,2]
[342658304,1732027859053,-150.0,0.00015243,2]
[342658306,1732027859063,-1500.0,0.00015248,2]
[342658308,1732027859073,-1500.0,0.00015248,2]
[342658310,1732027859083,-1500.0,0.00015248,2]
[342658312,1732027859092,-150.0,0.00015285,2]
[342658314,1732027859103,-1517.64,0.000153,2]
[342658316,1732027859112,-1161.29,0.00015301,7]
[342658318,1732027859123,-1161.29,0.00015301,7]
[342658320,1732027859132,-295.0,0.0001534,2]
[342658322,1732027859142,-4869.76,0.00015342,2]
[342658324,1732027859151,-436.17,0.00015342,2]
[342658325,1732027859161,-563.82,0.00015342,2]
[342658326,1732027859170,-11792.87,0.00015342,2]
[342658327,1732027859180,-793.08,0.00015342,2]
[342658328,1732027859190,-15865.09404128,0.000154,2]
[342658329,1732027859199,-482.42026416,0.000154,2]
[342658330,1732027859209,-2192.32,0.000154,7]
[342658331,1732027859218,-4869.76,0.00015479,2]
[342658333,1732027859228,-623.0,0.000155,3]
[342658335,1732027859237,-447.48640307,0.00015537,2]
[342658337,1732027859246,-160.20028232,0.00015537,2]
[342658339,1732027859256,-195.78455287,0.00015537,2]
[342658340,1732027859268,-150.0,0.00015573,2]
[342658342,1732027859278,-1161.29,0.00015574,7]
[342658344,1732027859287,-1161.29,0.00015574,7]
[342658346,1732027859296,-380.19165465,0.000156,2]
[342658348,1732027859306,-4869.76,0.00015616,2]
[342658350,1732027859316,-11792.87,0.00015726,2]
[342658352,1732027859326,-150.0,0.00015741,2]
[342658355,1732027859340,-4869.76,0.00015753,2]
[342658356,1732027859350,-601.770647,0.00015815,2]
[342658358,1732027859359,-308.44,0.00015815,2]
[342658360,1732027859369,-447.48640307,0.00015831,2]
[342658362,1732027859379,-160.20028232,0.00015831,2]
[342658364,1732027859388,-195.78455287,0.00015831,2]
[342658366,1732027859397,-1161.29,0.00015847,7]
[342658369,1732027859407,-1161.29,0.00015847,7]
[342658371,1732027859418,-150.0,0.00015861,2]
[342658372,1732027859428,-4869.76,0.0001589,2]
[342658375,1732027859438,-400.0,0.00015999,2]
[342658377,1732027859448,-400.0,0.00015999,2]
[342658379,1732027859458,-400.0,0.00015999,2]
[342658381,1732027859467,-400.0,0.00015999,2]
[342658383,1732027859477,-106978.999999,0.00016,2]
[342658385,1732027859486,-7843.62401727,0.00016,2]
[342658387,1732027859495,-39004.99547472,0.00016,2]
[342658389,1732027859504,-900.0,0.00016,17]
[342658391,1732027859516,-20148.0,0.00016,3]
[342658393,1732027859529,-150.0,0.00016,2]
[342658395,1732027859543,-150.0,0.00016,2]
[342658397,1732027859553,-623.0,0.00016,3]
[342658399,1732027859562,-1550.0,0.00016,2]
[342658401,1732027859572,-25831.85679404,0.00016,2]
[342658403,1732027859582,-564.0,0.00016,2]
[342658405,1732027859591,-1256.0,0.00016,2]
[342658407,1732027859601,-560.0,0.00016,2]
[342658409,1732027859612,-1994.0,0.00016,2]
[342658411,1732027859622,-1926.0,0.00016,2]
[342658413,1732027859632,-3747.0,0.00016,2]
[342658415,1732027859641,-814.0,0.00016,2]
[342658417,1732027859650,-920.0,0.00016,2]
[342658419,1732027859660,-1260.0,0.00016,2]
[342658421,1732027859670,-3513.0,0.00016,2]
[342658423,1732027859679,-150.0,0.00016,2]
[342658425,1732027859689,-523.685,0.00016,2]
[342658427,1732027859699,-812.75,0.00016,2]
[342658429,1732027859708,-812.75,0.00016,2]
[342658431,1732027859718,-812.75,0.00016,2]
[342658433,1732027859728,-812.75,0.00016,2]
[342658435,1732027859738,-812.75,0.00016,2]
[342658437,1732027859748,-812.75,0.00016,2]
[342658439,1732027859757,-812.75,0.00016,2]
[342658441,1732027859769,-812.75,0.00016,2]
[342658443,1732027859779,-812.75,0.00016,2]
[342658445,1732027859788,-812.75,0.00016,2]
[342658447,1732027859798,-812.75,0.00016,2]
[342658449,1732027859807,-812.75,0.00016,2]
[342658451,1732027859816,-812.75,0.00016,2]
[342658453,1732027859826,-812.75,0.00016,2]
[342658455,1732027859835,-812.75,0.00016,2]
[342658457,1732027859844,-812.75,0.00016,2]
[342658459,1732027859854,-812.75,0.00016,2]
[342658461,1732027859863,-812.75,0.00016,2]
[342658463,1732027859873,-812.75,0.00016,2]
[342658465,1732027859881,-812.75,0.00016,2]
[342658467,1732027859891,-4869.76,0.00016027,2]
[342658469,1732027859900,-11792.87,0.0001611,2]
[342658471,1732027859910,-9999.99,0.00016116,2]
[342658473,1732027859920,-1161.29,0.0001612,7]
[342658475,1732027859929,-1161.29,0.0001612,7]
[342658477,1732027859938,-447.48640307,0.00016125,2]
[342658479,1732027859948,-160.20028232,0.00016125,2]
[342658481,1732027859959,-195.78455287,0.00016125,2]
[342658483,1732027859969,-150.0,0.0001615,2]
[342658485,1732027859979,-4869.76,0.00016164,2]
[342658487,1732027859988,-150.0,0.00016167,2]
[342658489,1732027860002,-500.0,0.00016274,14]
[342658491,1732027860014,-500.0,0.00016282,14]
[342658493,1732027860023,-500.0,0.00016291,14]
[342658495,1732027860032,-500.0,0.000163,14]
[342658497,1732027860041,-4869.76,0.00016301,2]
[342658499,1732027860051,-500.0,0.00016309,14]
[342658501,1732027860061,-500.0,0.00016309,14]
[342658503,1732027860071,-500.0,0.00016318,14]
[342658505,1732027860080,-500.0,0.00016318,14]
[342658507,1732027860090,-150.0,0.00016321,2]
[342658509,1732027860099,-500.0,0.00016326,14]
[342658511,1732027860109,-500.0,0.00016326,14]
[342658513,1732027860118,-200.0,0.0001634,2]
[342658515,1732027860127,-150.0,0.00016374,2]
[342658517,1732027860137,-1161.29,0.00016393,7]
[342658519,1732027860146,-1161.29,0.00016393,7]
[342658521,1732027860155,-447.48640307,0.00016419,2]
[342658523,1732027860165,-160.20028232,0.00016419,2]
[342658525,1732027860176,-195.78455287,0.00016419,2]
[342658527,1732027860185,-1009.82,0.0001642,2]
[342658529,1732027860195,-400.0,0.00016437,2]
[342658531,1732027860204,-4869.76,0.00016438,2]
[342658533,1732027860213,-400.35,0.00016438,2]
[342658535,1732027860223,-400.35,0.00016438,2]
[342658537,1732027860233,-400.35,0.00016438,2]
[342658539,1732027860242,-400.35,0.00016438,2]
[342658541,1732027860251,-400.35,0.00016438,2]
[342658543,1732027860262,-400.35,0.00016438,2]
[342658545,1732027860272,-400.35,0.00016438,2]